fUST/lending_fUST_20240705
["ID","MTS","AMOUNT","RATE_DAILY","PERIOD"]
[331252483,1720159854809,-500.0,0.00053698,120]
[331252484,1720159854819,-746.364295,0.00053698,14]
[331252485,1720159854828,-746.364295,0.00053698,14]
[331252486,1720159854837,-500.0,0.00053698,120]
[331252487,1720159854847,-500.0,0.00053698,120]
[331252488,1720159854856,-500.0,0.00053698,120]
[331252489,1720159854865,-746.364295,0.00053698,14]
[331252490,1720159854875,-1306.18,0.00053698,120]
[331252491,1720159854888,-746.364295,0.00053698,14]
[331252492,1720159854897,-1196.76,0.00053698,120]
[331252493,1720159854907,-500.0,0.00053698,120]
[331252494,1720159854916,-306.414096,0.00053698,14]
[331252495,1720159854925,-306.414096,0.00053698,14]
[331252496,1720159854934,-500.0,0.00053698,120]
[331252497,1720159854944,-306.414096,0.00053698,14]
[331252498,1720159854953,-306.414096,0.00053698,14]
[331252499,1720159854964,-500.0,0.00053698,120]
[331252500,1720159854973,-761.27,0.00053698,120]
[331252501,1720159854982,-233.90011,0.00053698,14]
[331252502,1720159854991,-1248.81,0.00053698,120]
[331252503,1720159855001,-881.56,0.00053698,120]
[331252504,1720159855010,-762.45,0.00053698,120]
[331252505,1720159855019,-571.21,0.00053698,120]
[331252506,1720159855029,-151.0,0.00053698,14]
[331252507,1720159855038,-151.0,0.00053698,14]
[331252508,1720159855048,-500.0,0.00053698,120]
[331252509,1720159855057,-500.0,0.00053698,2]
[331252510,1720159855066,-500.0,0.00053698,120]
[331252511,1720159855076,-2669.17,0.00053698,120]
[331252512,1720159855085,-500.0,0.00053698,120]
[331252513,1720159855094,-500.0,0.00053698,120]
[331252514,1720159855104,-1985.97,0.00053698,120]
[331252515,1720159855114,-4427.95,0.00053698,120]
[331252516,1720159855123,-500.0,0.00053698,120]
[331252517,1720159855135,-292.17755186,0.00053698,120]
[331252518,1720159855144,-500.0,0.00053698,120]
[331252519,1720159855154,-500.0,0.00053698,120]
[331252520,1720159855163,-500.0,0.00053698,120]
[331252521,1720159855172,-2228.02,0.00053698,120]
[331252522,1720159855181,-596.33,0.00053698,120]
[331252523,1720159855191,-500.0,0.00053698,120]
[331252524,1720159855200,-2313.42,0.00053698,120]
[331252525,1720159855210,-500.0,0.00053698,120]
[331252526,1720159855219,-551.96,0.00053698,120]
[331252527,1720159855230,-811.44,0.00053698,120]
[331252528,1720159855239,-500.0,0.00053698,120]
[331252529,1720159855249,-500.0,0.00053698,120]
[331252530,1720159855259,-451.7244883,0.00053698,120]
[331252531,1720159855268,-500.0,0.00053698,120]
[331252532,1720159855278,-500.0,0.00053698,120]
[331252533,1720159855287,-2394.84,0.00053698,120]
[331252534,1720159855297,-500.0,0.00053698,120]
[331252535,1720159855306,-1227.58,0.00053698,120]
[331252536,1720159855317,-1541.73,0.00053698,120]
[331252537,1720159855328,-500.0,0.00053698,120]
[331252538,1720159855339,-500.0,0.00053698,120]
[331252539,1720159855348,-500.0,0.00053698,120]
[331252540,1720159855360,-500.0,0.00053698,120]
[331252541,1720159855369,-500.0,0.00053698,120]
[331252542,1720159855379,-500.0,0.00053698,120]
[331252543,1720159855388,-500.0,0.00053698,120]
[331252544,1720159855397,-500.0,0.00053698,120]
[331252545,1720159855407,-151.0,0.00053698,14]
[331252546,1720159855416,-196.995818,0.00053698,14]
[331252547,1720159855425,-982.84,0.00053698,120]
[331252548,1720159855435,-16019.4,0.00053698,120]
[331252549,1720159855445,-877.39,0.00053698,120]
[331252550,1720159855455,-500.0,0.00053698,120]
[331252551,1720159855465,-500.0,0.00053698,120]
[331252552,1720159855475,-500.0,0.00053698,28]
[331252553,1720159855486,-3663.75,0.00053972,120]
[331252554,1720159855496,-1306.18,0.00053972,120]
[331252555,1720159855506,-151.0,0.00053973,120]
[331252556,1720159855517,-200.0,0.00054073,120]
[331252557,1720159855527,-3663.75,0.00054246,120]
[331252558,1720159855537,-1306.18,0.00054246,120]
[331252559,1720159855547,-155.12167977,0.00054465,97]
[331252560,1720159855558,-2000.0,0.000545,120]
[331252561,1720159855568,-2000.0,0.000545,120]
[331252562,1720159855578,-2000.0,0.000545,120]
[331252563,1720159855588,-2000.0,0.000545,120]
[331252564,1720159855598,-3663.75,0.0005452,120]
[331252565,1720159855614,-1306.18,0.0005452,120]
[331252566,1720159855624,-151.0,0.00054575,120]
[331252567,1720159855634,-153.0,0.00054658,2]
[331252568,1720159855645,-153.0,0.00054658,2]
[331252569,1720159855656,-153.0,0.00054658,2]
[331252570,1720159855666,-153.0,0.00054658,2]
[331252571,1720159855677,-153.0,0.00054658,2]
[331252572,1720159855687,-153.6671116,0.00054658,2]
[331252573,1720159855697,-500.0,0.00054794,120]
[331252574,1720159855708,-542.26269249,0.00054794,120]
[331252575,1720159855718,-500.0,0.00054794,120]
[331252576,1720159855728,-500.0,0.00054794,120]
[331252577,1720159855737,-500.0,0.00054794,120]
[331252578,1720159855747,-554.19,0.00054794,120]
[331252579,1720159855757,-554.19,0.00054794,120]
[331252580,1720159855767,-554.19,0.00054794,120]
[331252581,1720159855777,-3663.75,0.00054794,120]
[331252582,1720159855786,-1306.18,0.00054794,120]
[331252583,1720159855796,-500.0,0.00054794,120]
[331252584,1720159855806,-639.0956595,0.00054794,120]
[331252585,1720159855815,-600.0,0.00054795,120]
[331252586,1720159855825,-600.0,0.00054795,120]
[331252587,1720159855834,-500.0,0.00054795,120]
[331252588,1720159855844,-500.0,0.00054795,120]
[331252589,1720159855854,-500.0,0.00054795,120]
[331252590,1720159855865,-500.0,0.00054795,120]
[331252591,1720159855874,-500.0,0.00054795,120]
[331252592,1720159855888,-500.0,0.00054795,120]
[331252593,1720159855898,-500.0,0.00054795,120]
[331252594,1720159855907,-500.0,0.00054795,120]
[331252595,1720159855917,-500.0,0.00054795,120]
[331252596,1720159855928,-500.0,0.00054795,120]
[331252597,1720159855937,-550.0,0.00054795,120]
[331252598,1720159855946,-500.0,0.00054795,120]
[331252599,1720159855956,-500.0,0.00054795,120]
[331252600,1720159855965,-500.0,0.00054795,120]
[331252601,1720159855974,-500.0,0.00054795,120]
[331252602,1720159855983,-500.0,0.00054795,120]
[331252603,1720159855992,-500.0,0.00054795,120]
[331252604,1720159856002,-500.0,0.00054795,120]
[331252605,1720159856011,-500.0,0.00054795,120]
[331252606,1720159856021,-500.0,0.00054795,120]
[331252607,1720159856030,-500.0,0.00054795,120]
[331252608,1720159856039,-500.0,0.00054795,120]
[331252609,1720159856050,-500.0,0.00054795,120]
[331252610,1720159856059,-500.0,0.00054795,120]
[331252611,1720159856068,-500.0,0.00054795,120]
[331252612,1720159856077,-500.0,0.00054795,120]
[331252613,1720159856086,-151.0,0.00054795,120]
[331252614,1720159856096,-198.302613,0.00054795,120]
[331252615,1720159856106,-198.302613,0.00054795,120]
[331252616,1720159856115,-5803.726433,0.000549,120]
[331252617,1720159856124,-2977.93008937,0.00055,120]
[331252618,1720159856135,-3220.85526353,0.00055,120]
[331252619,1720159856144,-5000.0,0.00055,120]
[331252620,1720159856154,-91826.354391,0.00055,120]
[331252621,1720159856164,-3663.75,0.00055068,120]
[331252622,1720159856173,-1306.18,0.00055068,120]
[331252623,1720159856183,-293.3096853,0.00055068,2]
[331252624,1720159856193,-293.3096853,0.00055068,2]
[331252625,1720159856202,-293.3096853,0.00055068,2]
[331252626,1720159856211,-293.3096853,0.00055068,2]
[331252627,1720159856221,-206.1408591,0.00055068,60]
[331252628,1720159856230,-381.3639204,0.00055068,2]
[331252629,1720159856239,-153.0,0.00055068,2]
[331252630,1720159856248,-154.2187865,0.00055068,60]
[331252631,1720159856358,-153.0,0.00055068,2]
[331252632,1720159856380,-206.1408591,0.00055068,60]
[331252633,1720159856391,-153.0,0.00055068,60]
[331252634,1720159856400,-206.1408591,0.00055068,60]
[331252635,1720159856410,-153.0,0.00055068,60]
[331252636,1720159856420,-153.0,0.00055068,2]
[331252637,1720159856429,-153.0,0.00055068,2]
[331252638,1720159856438,-206.1408591,0.00055068,60]
[331252639,1720159856448,-206.1408591,0.00055068,60]
[331252640,1720159856457,-452.7007641,0.00055068,60]
[331252641,1720159856467,-445.70596667,0.0005529,120]
[331252642,1720159856476,-3663.75,0.00055342,120]
[331252643,1720159856485,-1306.18,0.00055342,120]
[331252644,1720159856494,-151.0,0.0005537,120]
[331252645,1720159856503,-3663.9751198,0.00055616,120]
[331252646,1720159856513,-746.364295,0.00055616,120]
[331252647,1720159856522,-746.364295,0.00055616,120]
[331252648,1720159856532,-306.414096,0.00055616,120]
[331252649,1720159856541,-1306.29,0.00055616,120]
[331252650,1720159856550,-306.414096,0.00055616,120]
[331252651,1720159856559,-151.0,0.00055616,120]
[331252652,1720159856569,-158.516724,0.00055863,2]
[331252653,1720159856579,-533.92,0.0005589,120]
[331252654,1720159856588,-500.0,0.0005589,120]
[331252655,1720159856597,-500.0,0.0005589,120]
[331252656,1720159856606,-500.0,0.0005589,120]
[331252657,1720159856615,-500.0,0.0005589,120]
[331252658,1720159856624,-500.0,0.0005589,120]
[331252659,1720159856633,-500.0,0.0005589,120]
[331252660,1720159856644,-500.0,0.0005589,120]
[331252661,1720159856653,-500.0,0.0005589,120]
[331252662,1720159856662,-500.0,0.0005589,120]
[331252663,1720159856672,-500.0,0.0005589,120]
[331252664,1720159856681,-262.5938731,0.0005589,120]
[331252665,1720159856690,-500.0,0.0005589,120]
[331252666,1720159856701,-500.0,0.0005589,120]
[331252667,1720159856710,-172.98246066,0.0005589,120]
[331252668,1720159856720,-500.0,0.0005589,120]
[331252669,1720159856729,-500.0,0.0005589,120]
[331252670,1720159856739,-500.0,0.0005589,120]
[331252671,1720159856748,-706.79,0.0005589,120]
[331252672,1720159856758,-500.0,0.0005589,120]
[331252673,1720159856767,-527.88,0.0005589,120]
[331252674,1720159856776,-509.95246478,0.0005589,120]
[331252675,1720159856786,-500.0,0.0005589,120]
[331252676,1720159856797,-435.48508633,0.0005589,120]
[331252677,1720159856807,-500.0,0.0005589,120]
[331252678,1720159856816,-500.0,0.0005589,120]
[331252679,1720159856826,-500.0,0.0005589,120]
[331252680,1720159856836,-500.0,0.0005589,120]
[331252681,1720159856847,-500.0,0.0005589,120]
[331252682,1720159856857,-500.0,0.0005589,120]
[331252683,1720159856866,-500.0,0.0005589,120]
[331252684,1720159856876,-500.0,0.0005589,120]
[331252685,1720159856891,-500.0,0.0005589,120]
[331252686,1720159856902,-500.0,0.0005589,120]
[331252687,1720159856912,-500.0,0.0005589,120]
[331252688,1720159856923,-500.0,0.0005589,120]
[331252689,1720159856933,-500.0,0.0005589,120]
[331252690,1720159856942,-500.0,0.0005589,120]
[331252691,1720159856951,-500.0,0.0005589,120]
[331252692,1720159856961,-228.47415872,0.0005589,120]
[331252693,1720159856972,-1183.84,0.0005589,120]
[331252694,1720159856983,-500.0,0.0005589,120]
[331252695,1720159856992,-500.0,0.0005589,120]
[331252696,1720159857001,-929.93,0.0005589,120]
[331252697,1720159857010,-500.0,0.0005589,120]
[331252698,1720159857019,-500.0,0.0005589,120]
[331252699,1720159857028,-507.61048307,0.0005589,120]
[331252700,1720159857037,-531.10345192,0.0005589,120]
[331252701,1720159857046,-500.0,0.0005589,120]
[331252702,1720159857057,-500.0,0.0005589,14]
[331252703,1720159857067,-500.0,0.0005589,120]
[331252704,1720159857076,-1576.3,0.0005589,120]
[331252705,1720159857086,-500.0,0.0005589,120]
[331252706,1720159857095,-151.0,0.0005589,120]
[331252707,1720159857104,-500.0,0.0005589,120]
[331252708,1720159857115,-270.35502847,0.0005589,120]
[331252709,1720159857124,-458.43081535,0.0005589,120]
[331252710,1720159857133,-500.0,0.0005589,120]
[331252711,1720159857142,-500.0,0.0005589,120]
[331252712,1720159857152,-500.0,0.0005589,120]
[331252713,1720159857161,-500.0,0.0005589,120]
[331252714,1720159857171,-500.0,0.0005589,120]
[331252715,1720159857180,-500.0,0.0005589,20]
[331252716,1720159857189,-198.302613,0.0005589,120]
[331252717,1720159857199,-198.302613,0.0005589,120]
[331252718,1720159857208,-500.0,0.0005589,120]
[331252719,1720159857218,-500.0,0.0005589,120]
[331252720,1720159857227,-500.0,0.0005589,120]
[331252721,1720159857236,-500.0,0.0005589,120]
[331252722,1720159857245,-508.0,0.0005589,120]
[331252723,1720159857254,-500.0,0.0005589,120]
[331252724,1720159857264,-500.0,0.0005589,120]
[331252725,1720159857274,-500.0,0.0005589,120]
[331252726,1720159857285,-500.0,0.0005589,120]
[331252727,1720159857295,-500.0,0.0005589,120]
[331252728,1720159857307,-500.0,0.0005589,120]
[331252729,1720159857316,-500.0,0.0005589,120]
[331252730,1720159857326,-500.0,0.0005589,120]
[331252731,1720159857336,-500.0,0.0005589,120]
[331252732,1720159857347,-500.0,0.0005589,120]
[331252733,1720159857358,-934.13,0.0005589,120]
[331252734,1720159857369,-500.0,0.0005589,120]
[331252735,1720159857378,-500.0,0.0005589,120]
[331252736,1720159857388,-500.0,0.0005589,120]
[331252737,1720159857397,-877.53,0.0005589,120]
[331252738,1720159857407,-500.0,0.0005589,120]
[331252739,1720159857416,-500.0,0.0005589,120]
[331252740,1720159857425,-500.0,0.0005589,120]
[331252741,1720159857435,-511.74943528,0.0005589,120]
[331252742,1720159857445,-1103.83,0.0005589,120]
[331252743,1720159857454,-506.09004346,0.0005589,120]
[331252744,1720159857463,-500.0,0.0005589,120]
[331252745,1720159857472,-1051.27,0.0005589,120]
[331252746,1720159857482,-500.0,0.0005589,120]
[331252747,1720159857491,-151.0,0.0005589,120]
[331252748,1720159857500,-500.0,0.0005589,120]
[331252749,1720159857509,-500.0,0.0005589,120]
[331252750,1720159857518,-504.1787206,0.0005589,120]
[331252751,1720159857528,-500.0,0.0005589,120]
[331252752,1720159857537,-219.91,0.0005589,7]
[331252753,1720159857546,-500.0,0.0005589,120]
[331252754,1720159857556,-500.0,0.0005589,120]
[331252755,1720159857565,-500.0,0.0005589,120]
[331252756,1720159857575,-500.0,0.0005589,120]
[331252757,1720159857584,-500.0,0.0005589,120]
[331252758,1720159857593,-500.0,0.0005589,120]
[331252759,1720159857604,-500.0,0.0005589,120]
[331252760,1720159857614,-573.47546235,0.0005589,120]
[331252761,1720159857623,-500.0,0.0005589,120]
[331252762,1720159857633,-500.0,0.0005589,120]
[331252763,1720159857642,-500.0,0.0005589,120]
[331252764,1720159857651,-13556.68,0.0005589,120]
[331252765,1720159857660,-500.0,0.0005589,120]
[331252766,1720159857669,-500.0,0.0005589,120]
[331252767,1720159857678,-500.0,0.0005589,120]
[331252768,1720159857687,-500.0,0.0005589,120]
[331252769,1720159857696,-500.0,0.0005589,120]
[331252770,1720159857706,-500.0,0.0005589,30]
[331252771,1720159857715,-500.0,0.0005589,120]
[331252772,1720159857724,-500.0,0.0005589,120]
[331252773,1720159857734,-500.0,0.0005589,120]
[331252774,1720159857743,-500.0,0.0005589,120]
[331252775,1720159857752,-12140.5,0.0005589,120]
[331252776,1720159857762,-554.19,0.0005589,120]
[331252777,1720159857771,-500.0,0.0005589,120]
[331252778,1720159857780,-861.77,0.0005589,120]
[331252779,1720159857789,-500.0,0.0005589,120]
[331252780,1720159857798,-500.0,0.0005589,120]
[331252781,1720159857807,-500.0,0.0005589,120]
[331252782,1720159857816,-500.0,0.0005589,120]
[331252783,1720159857825,-221.9709,0.0005589,120]
[331252784,1720159857834,-500.0,0.0005589,120]
[331252785,1720159857844,-500.0,0.0005589,120]
[331252786,1720159857853,-500.0,0.0005589,120]
[331252787,1720159857863,-500.0,0.0005589,120]
[331252788,1720159857873,-221.9709,0.0005589,120]
[331252789,1720159857884,-537.96,0.0005589,120]
[331252790,1720159857894,-500.0,0.0005589,120]
[331252791,1720159857903,-500.0,0.0005589,120]
[331252792,1720159857913,-500.0,0.0005589,120]
[331252793,1720159857923,-500.0,0.0005589,120]
[331252794,1720159857932,-524.80255849,0.0005589,120]
[331252795,1720159857942,-500.0,0.0005589,120]
[331252796,1720159857951,-490.1,0.0005589,120]
[331252797,1720159857961,-500.0,0.0005589,120]
[331252798,1720159857974,-500.0,0.0005589,120]
[331252799,1720159857984,-500.0,0.0005589,120]
[331252800,1720159857994,-500.0,0.0005589,120]
[331252801,1720159858004,-500.0,0.0005589,120]
[331252802,1720159858013,-500.0,0.0005589,120]
[331252803,1720159858024,-500.0,0.0005589,120]
[331252804,1720159858034,-500.0,0.0005589,120]
[331252805,1720159858044,-500.0,0.0005589,120]
[331252806,1720159858055,-500.0,0.0005589,120]
[331252807,1720159858066,-500.0,0.0005589,120]
[331252808,1720159858075,-500.0,0.0005589,120]
[331252809,1720159858084,-500.0,0.0005589,120]
[331252810,1720159858094,-500.0,0.0005589,120]
[331252811,1720159858103,-575.76275457,0.0005589,120]
[331252812,1720159858116,-537.46,0.0005589,120]
[331252813,1720159858125,-500.0,0.0005589,120]
[331252814,1720159858133,-1764.94,0.0005589,21]
[331252815,1720159858146,-8962.91,0.0005589,120]
[331252816,1720159858155,-4450.98,0.0005589,120]
[331252817,1720159858166,-807.79,0.0005589,120]
[331252818,1720159858175,-500.0,0.0005589,120]
[331252819,1720159858185,-597.40479711,0.0005589,120]
[331252820,1720159858194,-500.0,0.0005589,120]
[331252821,1720159858204,-500.0,0.0005589,120]
[331252822,1720159858214,-500.0,0.0005589,60]
[331252823,1720159858226,-3392.42,0.0005589,120]
[331252824,1720159858235,-512.93340753,0.0005589,120]
[331252825,1720159858245,-500.0,0.0005589,120]
[331252826,1720159858255,-2105.17,0.0005589,120]
[331252827,1720159858266,-500.0,0.0005589,120]
[331252828,1720159858278,-656.97,0.0005589,120]
[331252829,1720159858287,-434.17790475,0.0005589,120]
[331252830,1720159858297,-500.0,0.0005589,120]
[331252831,1720159858306,-151.0,0.0005589,120]
[331252832,1720159858315,-151.0,0.0005589,120]
[331252833,1720159858327,-500.0,0.0005589,120]
[331252834,1720159858337,-500.0,0.0005589,120]
[331252835,1720159858347,-500.0,0.0005589,120]
[331252836,1720159858358,-500.0,0.0005589,120]
[331252837,1720159858371,-900.16,0.0005589,120]
[331252838,1720159858382,-500.0,0.0005589,120]
[331252839,1720159858391,-500.0,0.0005589,120]
[331252840,1720159858400,-774.43,0.0005589,120]
[331252841,1720159858409,-500.0,0.0005589,120]
[331252842,1720159858418,-766.63,0.0005589,120]
[331252843,1720159858428,-500.0,0.0005589,120]
[331252844,1720159858438,-887.98,0.0005589,120]
[331252845,1720159858447,-500.0,0.0005589,120]
[331252846,1720159858457,-500.0,0.0005589,120]
[331252847,1720159858466,-667.88,0.0005589,120]
[331252848,1720159858476,-500.0,0.0005589,120]
[331252849,1720159858485,-866.89,0.0005589,120]
[331252850,1720159858495,-500.0,0.0005589,120]
[331252851,1720159858505,-500.0,0.0005589,120]
[331252852,1720159858514,-436.48249145,0.0005589,120]
[331252853,1720159858523,-500.0,0.0005589,120]
[331252854,1720159858532,-500.0,0.0005589,120]
[331252855,1720159858541,-500.0,0.0005589,120]
[331252856,1720159858550,-500.0,0.0005589,120]
[331252857,1720159858558,-500.0,0.0005589,120]
[331252858,1720159858568,-500.0,0.0005589,120]
[331252859,1720159858577,-1461.72,0.0005589,120]
[331252860,1720159858586,-790.0,0.0005589,120]
[331252861,1720159858596,-500.0,0.0005589,120]
[331252862,1720159858605,-330.253823,0.0005589,120]
[331252863,1720159858615,-330.253823,0.0005589,120]
[331252864,1720159858626,-268.901514,0.0005589,120]
[331252865,1720159858636,-268.901514,0.0005589,120]
[331252866,1720159858645,-500.0,0.0005589,120]
[331252867,1720159858655,-330.253823,0.0005589,120]
[331252868,1720159858664,-330.253823,0.0005589,120]
[331252869,1720159858674,-268.901514,0.0005589,120]
[331252870,1720159858683,-268.901514,0.0005589,120]
[331252871,1720159858693,-500.0,0.0005589,120]
[331252872,1720159858702,-500.0,0.0005589,120]
[331252873,1720159858712,-529.97,0.0005589,120]
[331252874,1720159858721,-500.0,0.0005589,120]
[331252875,1720159858731,-523.0,0.0005589,120]
[331252876,1720159858740,-500.0,0.0005589,120]
[331252877,1720159858750,-500.0,0.0005589,120]
[331252878,1720159858861,-500.0,0.0005589,120]
[331252879,1720159858872,-500.0,0.0005589,120]
[331252880,1720159858888,-500.0,0.0005589,120]
[331252881,1720159858898,-500.0,0.0005589,120]
[331252882,1720159858908,-4559.97,0.0005589,120]
[331252883,1720159858918,-500.0,0.0005589,120]
[331252884,1720159858930,-746.364295,0.0005589,120]
[331252885,1720159858940,-500.0,0.0005589,120]
[331252886,1720159858951,-500.0,0.0005589,120]
[331252887,1720159858961,-500.0,0.0005589,120]
[331252888,1720159858971,-1196.76,0.0005589,120]
[331252889,1720159858982,-746.364295,0.0005589,120]
[331252890,1720159858992,-500.0,0.0005589,120]
[331252891,1720159859002,-306.414096,0.0005589,120]
[331252892,1720159859011,-500.0,0.0005589,120]
[331252893,1720159859021,-500.0,0.0005589,120]
[331252894,1720159859031,-306.414096,0.0005589,120]
[331252895,1720159859041,-761.27,0.0005589,120]
[331252896,1720159859051,-1248.81,0.0005589,120]
[331252897,1720159859061,-881.56,0.0005589,120]
[331252898,1720159859071,-762.45,0.0005589,120]
[331252899,1720159859080,-500.0,0.0005589,120]
[331252900,1720159859089,-500.0,0.0005589,2]
[331252901,1720159859099,-500.0,0.0005589,120]
[331252902,1720159859110,-151.0,0.0005589,120]
[331252903,1720159859119,-2669.17,0.0005589,120]
[331252904,1720159859129,-500.0,0.0005589,120]
[331252905,1720159859140,-500.0,0.0005589,120]
[331252906,1720159859150,-1985.97,0.0005589,120]
[331252907,1720159859159,-4427.95,0.0005589,120]
[331252908,1720159859169,-500.0,0.0005589,120]
[331252909,1720159859179,-500.0,0.0005589,120]
[331252910,1720159859188,-500.0,0.0005589,120]
[331252911,1720159859197,-500.0,0.0005589,120]
[331252912,1720159859207,-2228.02,0.0005589,120]
[331252913,1720159859216,-596.33,0.0005589,120]
[331252914,1720159859225,-500.0,0.0005589,120]
[331252915,1720159859234,-2313.42,0.0005589,120]
[331252916,1720159859243,-500.0,0.0005589,120]
[331252917,1720159859253,-551.96,0.0005589,120]
[331252918,1720159859262,-811.44,0.0005589,120]
[331252919,1720159859271,-500.0,0.0005589,120]
[331252920,1720159859280,-500.0,0.0005589,120]
[331252921,1720159859290,-500.0,0.0005589,120]
[331252922,1720159859299,-500.0,0.0005589,120]
[331252923,1720159859308,-2394.84,0.0005589,120]
[331252924,1720159859317,-500.0,0.0005589,120]
[331252925,1720159859329,-1227.58,0.0005589,120]
[331252926,1720159859338,-500.0,0.0005589,120]
[331252927,1720159859349,-1541.73,0.0005589,120]
[331252928,1720159859360,-500.0,0.0005589,120]
[331252929,1720159859369,-500.0,0.0005589,120]
[331252930,1720159859379,-500.0,0.0005589,120]
[331252931,1720159859388,-500.0,0.0005589,120]
[331252932,1720159859398,-500.0,0.0005589,120]
[331252933,1720159859408,-508.87221865,0.0005589,120]
[331252934,1720159859419,-500.0,0.0005589,120]
[331252935,1720159859428,-982.84,0.0005589,120]
[331252936,1720159859438,-16019.4,0.0005589,120]
[331252937,1720159859448,-877.39,0.0005589,120]
[331252938,1720159859458,-500.0,0.0005589,120]
[331252939,1720159859467,-500.0,0.0005589,120]
[331252940,1720159859478,-151.0,0.00056,52]
[331252941,1720159859487,-151.0,0.00056658,120]
[331252942,1720159859498,-440.9209018,0.00056712,2]
[331252943,1720159859507,-151.0,0.00056767,120]
[331252944,1720159859517,-3876.90000001,0.00056798,78]
[331252945,1720159859527,-642.515274,0.00057693,2]
[331252946,1720159859537,-533.92,0.00058082,120]
[331252947,1720159859546,-500.0,0.00058082,120]
[331252948,1720159859555,-500.0,0.00058082,120]
[331252949,1720159859565,-500.0,0.00058082,120]
[331252950,1720159859575,-500.0,0.00058082,120]
[331252951,1720159859584,-500.0,0.00058082,120]
[331252952,1720159859594,-500.0,0.00058082,120]
[331252953,1720159859603,-500.0,0.00058082,120]
[331252954,1720159859613,-500.0,0.00058082,120]
[331252955,1720159859623,-500.0,0.00058082,120]
[331252956,1720159859633,-500.0,0.00058082,120]
[331252957,1720159859643,-500.0,0.00058082,120]
[331252958,1720159859652,-500.0,0.00058082,120]
[331252959,1720159859661,-500.0,0.00058082,120]
[331252960,1720159859670,-500.0,0.00058082,120]
[331252961,1720159859679,-500.0,0.00058082,120]
[331252962,1720159859688,-706.79,0.00058082,120]
[331252963,1720159859698,-500.0,0.00058082,120]
[331252964,1720159859707,-527.88,0.00058082,120]
[331252965,1720159859716,-406.75049393,0.00058082,120]
[331252966,1720159860246,-3206.26083535,0.00034811,4]
[331252967,1720159860255,-153.648743,0.00049315,14]
[331252968,1720159860264,-500.0,0.00049315,120]
[331252969,1720159860274,-4175.33,0.00049315,120]
[331252970,1720159860283,-500.0,0.00051506,120]
[331252971,1720159860293,-500.0,0.00051506,120]
[331252972,1720159860302,-4175.33,0.00051506,120]
[331252973,1720159860311,-1283.49,0.00053698,120]
[331252974,1720159860322,-500.0,0.00053698,120]
[331252975,1720159860332,-500.0,0.00053698,120]
[331252976,1720159860341,-430.17474656,0.0005589,120]
[331252977,1720159860646,-155.04482031,0.00039167,4]
[331252978,1720159860656,-371.76030642,0.00053698,120]
[331252979,1720159860672,-863.68255335,0.00053698,120]
[331252980,1720159860684,-2939.88714023,0.00053698,120]
[331252981,1720159860693,-853.31525344,0.0005589,120]
[331252982,1720159860702,-500.0,0.0005589,120]